fUST/lending_fUST_20241012
["ID","MTS","AMOUNT","RATE_DAILY","PERIOD"]
[340143779,1728678655839,-155.9,0.00056686,120]
[340143780,1728678655850,-2000.0,0.00056687,15]
[340143781,1728678655860,-500.0,0.00056712,120]
[340143782,1728678655871,-933.99,0.00056712,120]
[340143783,1728678655881,-500.0,0.00056712,120]
[340143784,1728678655891,-804.51,0.00056712,120]
[340143785,1728678655902,-500.0,0.00056712,120]
[340143786,1728678655914,-500.0,0.00056712,120]
[340143787,1728678655924,-500.0,0.00056712,2]
[340143788,1728678655933,-500.0,0.00056712,7]
[340143789,1728678655942,-536.15,0.00056712,120]
[340143790,1728678655951,-500.0,0.00056712,120]
[340143791,1728678655960,-500.0,0.00056712,120]
[340143792,1728678655970,-500.0,0.00056712,120]
[340143793,1728678655979,-994.59,0.00056712,120]
[340143794,1728678655989,-482.14697234,0.00056712,120]
[340143795,1728678655998,-683.35,0.00056712,30]
[340143796,1728678656007,-546.26,0.00056712,120]
[340143797,1728678656017,-500.0,0.00056712,2]
[340143798,1728678656026,-250.0,0.00056712,120]
[340143799,1728678656035,-500.0,0.00056712,120]
[340143800,1728678656045,-500.0,0.00056712,120]
[340143801,1728678656055,-1202.52,0.00056712,120]
[340143802,1728678656064,-1411.19,0.00056712,120]
[340143803,1728678656074,-1442.14,0.00056712,120]
[340143804,1728678656083,-500.0,0.00056712,120]
[340143805,1728678656093,-500.0,0.00056712,120]
[340143806,1728678656102,-873.86919032,0.00056712,120]
[340143807,1728678656111,-632.2,0.00056712,120]
[340143808,1728678656120,-500.0,0.00056712,120]
[340143809,1728678656129,-500.0,0.00056712,120]
[340143810,1728678656139,-561.03,0.00056712,120]
[340143811,1728678656148,-526.01,0.00056712,120]
[340143812,1728678656158,-500.0,0.00056712,120]
[340143813,1728678656168,-1351.2,0.00056712,120]
[340143814,1728678656178,-3425.5,0.00056712,120]
[340143815,1728678656187,-2791.64,0.00056712,120]
[340143816,1728678656197,-690.98,0.00056712,120]
[340143817,1728678656206,-521.14,0.00056712,120]
[340143818,1728678656215,-613.21,0.00056712,120]
[340143819,1728678656224,-500.0,0.00056712,120]
[340143820,1728678656234,-500.0,0.00056712,120]
[340143821,1728678656243,-785.83,0.00056712,120]
[340143822,1728678656252,-500.0,0.00056712,120]
[340143823,1728678656262,-500.0,0.00056712,120]
[340143824,1728678656272,-500.0,0.00056712,120]
[340143825,1728678656281,-621.34,0.00056712,120]
[340143826,1728678656291,-500.0,0.00056712,120]
[340143827,1728678656300,-638.04,0.00056712,120]
[340143828,1728678656309,-574.52,0.00056712,120]
[340143829,1728678656319,-500.0,0.00056712,120]
[340143830,1728678656328,-709.73,0.00056712,120]
[340143831,1728678656337,-500.0,0.00056712,120]
[340143832,1728678656346,-200.0,0.00056712,120]
[340143833,1728678656355,-1000.0,0.00056712,120]
[340143834,1728678656365,-500.0,0.00056712,120]
[340143835,1728678656374,-381.32389174,0.00056712,120]
[340143836,1728678656383,-500.0,0.00056712,120]
[340143837,1728678656392,-6494.28,0.00056712,120]
[340143838,1728678656401,-623.84,0.00056712,2]
[340143839,1728678656410,-500.0,0.00056712,120]
[340143840,1728678656419,-601.28,0.00056712,120]
[340143841,1728678656433,-9360.29,0.00056712,18]
[340143842,1728678656443,-592.96,0.00056712,120]
[340143843,1728678656452,-1000.0,0.00056718,120]
[340143844,1728678656462,-1742.41686285,0.00056789,2]
[340143845,1728678656472,-1000.0,0.00056893,120]
[340143846,1728678656482,-150.0,0.000569,2]
[340143847,1728678656491,-500.0,0.00056986,120]
[340143848,1728678656501,-933.99,0.00056986,120]
[340143849,1728678656509,-500.0,0.00056986,120]
[340143850,1728678656519,-804.51,0.00056986,120]
[340143851,1728678656529,-500.0,0.00056986,120]
[340143852,1728678656538,-500.0,0.00056986,120]
[340143853,1728678656547,-500.0,0.00056986,2]
[340143854,1728678656557,-500.0,0.00056986,7]
[340143855,1728678656566,-536.15,0.00056986,120]
[340143856,1728678656575,-500.0,0.00056986,120]
[340143857,1728678656584,-500.0,0.00056986,120]
[340143858,1728678656593,-400.0,0.00056986,120]
[340143859,1728678656602,-994.59,0.00056986,120]
[340143860,1728678656611,-683.35,0.00056986,30]
[340143861,1728678656621,-546.26,0.00056986,120]
[340143862,1728678656630,-500.0,0.00056986,2]
[340143863,1728678656639,-250.0,0.00056986,120]
[340143864,1728678656649,-500.0,0.00056986,120]
[340143865,1728678656659,-500.0,0.00056986,120]
[340143866,1728678656668,-1202.52,0.00056986,120]
[340143867,1728678656678,-1411.19,0.00056986,120]
[340143868,1728678656687,-1442.14,0.00056986,120]
[340143869,1728678656697,-500.0,0.00056986,120]
[340143870,1728678656706,-500.0,0.00056986,120]
[340143871,1728678656715,-632.2,0.00056986,120]
[340143872,1728678656725,-270.5528655,0.00056986,120]
[340143873,1728678656734,-500.0,0.00056986,120]
[340143874,1728678656743,-561.03,0.00056986,120]
[340143875,1728678656754,-526.01,0.00056986,120]
[340143876,1728678656763,-500.0,0.00056986,120]
[340143877,1728678656772,-1351.2,0.00056986,120]
[340143878,1728678656781,-3425.5,0.00056986,120]
[340143879,1728678656790,-2791.64,0.00056986,120]
[340143880,1728678656799,-690.98,0.00056986,120]
[340143881,1728678656809,-521.14,0.00056986,120]
[340143882,1728678656818,-613.21,0.00056986,120]
[340143883,1728678656827,-500.0,0.00056986,120]
[340143884,1728678656836,-500.0,0.00056986,120]
[340143885,1728678656846,-785.83,0.00056986,120]
[340143886,1728678656855,-332.74979059,0.00056986,120]
[340143887,1728678656865,-500.0,0.00056986,120]
[340143888,1728678656874,-500.0,0.00056986,120]
[340143889,1728678656884,-621.34,0.00056986,120]
[340143890,1728678656893,-500.0,0.00056986,120]
[340143891,1728678656902,-638.04,0.00056986,120]
[340143892,1728678656911,-574.52,0.00056986,120]
[340143893,1728678656921,-500.0,0.00056986,120]
[340143894,1728678656930,-709.73,0.00056986,120]
[340143895,1728678656940,-500.0,0.00056986,120]
[340143896,1728678656950,-200.0,0.00056986,120]
[340143897,1728678656960,-1000.0,0.00056986,120]
[340143898,1728678656970,-500.0,0.00056986,120]
[340143899,1728678656980,-500.0,0.00056986,120]
[340143900,1728678656989,-6494.28,0.00056986,120]
[340143901,1728678657059,-623.84,0.00056986,2]
[340143902,1728678657070,-500.0,0.00056986,120]
[340143903,1728678657079,-601.28,0.00056986,120]
[340143904,1728678657089,-9360.29,0.00056986,18]
[340143905,1728678657099,-592.96,0.00056986,120]
[340143906,1728678657108,-1000.0,0.00057,120]
[340143907,1728678657117,-1625.39,0.00057,30]
[340143908,1728678657127,-155.9,0.00057003,120]
[340143909,1728678657137,-1000.0,0.00057068,120]
[340143910,1728678657147,-1000.0,0.00057243,120]
[340143911,1728678657157,-500.0,0.0005726,120]
[340143912,1728678657167,-933.99,0.0005726,120]
[340143913,1728678657177,-500.0,0.0005726,120]
[340143914,1728678657187,-804.51,0.0005726,120]
[340143915,1728678657197,-500.0,0.0005726,120]
[340143916,1728678657207,-500.0,0.0005726,120]
[340143917,1728678657216,-500.0,0.0005726,2]
[340143918,1728678657226,-500.0,0.0005726,7]
[340143919,1728678657235,-536.15,0.0005726,120]
[340143920,1728678657245,-500.0,0.0005726,120]
[340143921,1728678657256,-500.0,0.0005726,120]
[340143922,1728678657267,-994.59,0.0005726,120]
[340143923,1728678657277,-683.35,0.0005726,30]
[340143924,1728678657287,-546.26,0.0005726,120]
[340143925,1728678657297,-500.0,0.0005726,2]
[340143926,1728678657307,-250.0,0.0005726,120]
[340143927,1728678657317,-500.0,0.0005726,120]
[340143928,1728678657328,-500.0,0.0005726,120]
[340143929,1728678657337,-1202.52,0.0005726,120]
[340143930,1728678657346,-1411.19,0.0005726,120]
[340143931,1728678657356,-1442.14,0.0005726,120]
[340143932,1728678657366,-500.0,0.0005726,120]
[340143933,1728678657375,-500.0,0.0005726,120]
[340143934,1728678657385,-632.2,0.0005726,120]
[340143935,1728678657394,-500.0,0.0005726,120]
[340143936,1728678657405,-561.03,0.0005726,120]
[340143937,1728678657415,-526.01,0.0005726,120]
[340143938,1728678657427,-500.0,0.0005726,120]
[340143939,1728678657444,-1351.2,0.0005726,120]
[340143940,1728678657453,-3425.5,0.0005726,120]
[340143941,1728678657462,-2791.64,0.0005726,120]
[340143942,1728678657471,-690.98,0.0005726,120]
[340143943,1728678657480,-521.14,0.0005726,120]
[340143944,1728678657489,-613.21,0.0005726,120]
[340143945,1728678657498,-500.0,0.0005726,120]
[340143946,1728678657507,-500.0,0.0005726,120]
[340143947,1728678657516,-785.83,0.0005726,120]
[340143948,1728678657525,-242.03644161,0.0005726,120]
[340143949,1728678657535,-500.0,0.0005726,120]
[340143950,1728678657545,-621.34,0.0005726,120]
[340143951,1728678657556,-500.0,0.0005726,120]
[340143952,1728678657566,-638.04,0.0005726,120]
[340143953,1728678657577,-574.52,0.0005726,120]
[340143954,1728678657587,-332.06269616,0.0005726,120]
[340143955,1728678657600,-709.73,0.0005726,120]
[340143956,1728678657609,-500.0,0.0005726,120]
[340143957,1728678657621,-200.0,0.0005726,120]
[340143958,1728678657631,-1000.0,0.0005726,120]
[340143959,1728678657642,-500.0,0.0005726,120]
[340143960,1728678657655,-500.0,0.0005726,120]
[340143961,1728678657665,-6494.28,0.0005726,120]
[340143962,1728678657677,-623.84,0.0005726,2]
[340143963,1728678657688,-500.0,0.0005726,120]
[340143964,1728678657699,-601.28,0.0005726,120]
[340143965,1728678657712,-9360.29,0.0005726,18]
[340143966,1728678657724,-592.96,0.0005726,120]
[340143967,1728678657734,-155.9,0.00057321,120]
[340143968,1728678657746,-1000.0,0.00057417,120]
[340143969,1728678657755,-500.0,0.00057534,120]
[340143970,1728678657764,-933.99,0.00057534,120]
[340143971,1728678657774,-500.0,0.00057534,120]
[340143972,1728678657784,-804.51,0.00057534,120]
[340143973,1728678657796,-500.0,0.00057534,120]
[340143974,1728678657807,-500.0,0.00057534,120]
[340143975,1728678657820,-500.0,0.00057534,2]
[340143976,1728678657832,-500.0,0.00057534,7]
[340143977,1728678657844,-536.15,0.00057534,120]
[340143978,1728678657856,-415.99860811,0.00057534,120]
[340143979,1728678657866,-297.35766612,0.00057534,120]
[340143980,1728678657878,-994.59,0.00057534,120]
[340143981,1728678657888,-683.35,0.00057534,30]
[340143982,1728678657897,-546.26,0.00057534,120]
[340143983,1728678657909,-500.0,0.00057534,2]
[340143984,1728678657922,-250.0,0.00057534,120]
[340143985,1728678657934,-500.0,0.00057534,120]
[340143986,1728678657945,-500.0,0.00057534,120]
[340143987,1728678657954,-1202.52,0.00057534,120]
[340143988,1728678657964,-1411.19,0.00057534,120]
[340143989,1728678657976,-1442.14,0.00057534,120]
[340143990,1728678657987,-500.0,0.00057534,120]
[340143991,1728678657997,-500.0,0.00057534,120]
[340143992,1728678658008,-632.2,0.00057534,120]
[340143993,1728678658017,-514.24405153,0.00057534,120]
[340143994,1728678658026,-321.92774109,0.00057534,120]
[340143995,1728678658036,-561.03,0.00057534,120]
[340143996,1728678658048,-500.0,0.00057534,120]
[340143997,1728678658058,-526.01,0.00057534,120]
[340143998,1728678658067,-1351.2,0.00057534,120]
[340143999,1728678658077,-3425.5,0.00057534,120]
[340144000,1728678658087,-2791.64,0.00057534,120]
[340144001,1728678658096,-690.98,0.00057534,120]
[340144002,1728678658106,-521.14,0.00057534,120]
[340144003,1728678658116,-613.21,0.00057534,120]
[340144004,1728678658125,-282.03675284,0.00057534,120]
[340144005,1728678658134,-500.0,0.00057534,120]
[340144006,1728678658144,-785.83,0.00057534,120]
[340144007,1728678658153,-500.0,0.00057534,120]
[340144008,1728678658162,-621.34,0.00057534,120]
[340144009,1728678658172,-500.0,0.00057534,120]
[340144010,1728678658181,-638.04,0.00057534,120]
[340144011,1728678658191,-574.52,0.00057534,120]
[340144012,1728678658201,-709.73,0.00057534,120]
[340144013,1728678658211,-500.0,0.00057534,120]
[340144014,1728678658221,-200.0,0.00057534,120]
[340144015,1728678658230,-731.04668175,0.00057534,120]
[340144016,1728678658240,-500.0,0.00057534,120]
[340144017,1728678658249,-3750.0,0.00057534,120]
[340144018,1728678658259,-500.0,0.00057534,120]
[340144019,1728678658268,-6494.28,0.00057534,120]
[340144020,1728678658278,-623.84,0.00057534,2]
[340144021,1728678658287,-193.65825968,0.00057534,120]
[340144022,1728678658297,-601.28,0.00057534,120]
[340144023,1728678658307,-9360.29,0.00057534,18]
[340144024,1728678658317,-592.96,0.00057534,120]
[340144025,1728678658327,-1000.0,0.00057592,120]
[340144026,1728678658337,-155.9,0.00057639,120]
[340144027,1728678658346,-1219.0,0.00057699,120]
[340144028,1728678658356,-150.0,0.00057699,120]
[340144029,1728678658418,-1392.69531893,0.000577,120]
[340144030,1728678658435,-1000.0,0.00057767,120]
[340144031,1728678658444,-1058104.90760083,0.000578,20]
[340144032,1728678658455,-33024.2613157,0.000578,20]
[340144033,1728678658464,-500.0,0.00057808,120]
[340144034,1728678658475,-933.99,0.00057808,120]
[340144035,1728678658485,-500.0,0.00057808,120]
[340144036,1728678658494,-804.51,0.00057808,120]
[340144037,1728678658504,-500.0,0.00057808,120]
[340144038,1728678658514,-500.0,0.00057808,120]
[340144039,1728678658523,-500.0,0.00057808,2]
[340144040,1728678658533,-500.0,0.00057808,7]
[340144041,1728678658544,-536.15,0.00057808,120]
[340144042,1728678658553,-994.59,0.00057808,120]
[340144043,1728678658562,-683.35,0.00057808,30]
[340144044,1728678658571,-546.26,0.00057808,120]
[340144045,1728678658581,-500.0,0.00057808,2]
[340144046,1728678658591,-250.0,0.00057808,120]
[340144047,1728678658600,-500.0,0.00057808,120]
[340144048,1728678658609,-500.0,0.00057808,120]
[340144049,1728678658618,-1202.52,0.00057808,120]
[340144050,1728678658627,-1411.19,0.00057808,120]
[340144051,1728678658638,-1442.14,0.00057808,120]
[340144052,1728678658648,-500.0,0.00057808,120]
[340144053,1728678658657,-189.73346819,0.00057808,120]
[340144054,1728678658667,-632.2,0.00057808,120]
[340144055,1728678658677,-561.03,0.00057808,120]
[340144056,1728678658688,-500.0,0.00057808,120]
[340144057,1728678658699,-526.01,0.00057808,120]
[340144058,1728678658709,-1351.2,0.00057808,120]
[340144059,1728678658718,-3425.5,0.00057808,120]
[340144060,1728678658728,-2791.64,0.00057808,120]
[340144061,1728678658737,-690.98,0.00057808,120]
[340144062,1728678658747,-521.14,0.00057808,120]
[340144063,1728678658756,-613.21,0.00057808,120]
[340144064,1728678658766,-500.0,0.00057808,120]
[340144065,1728678658777,-785.83,0.00057808,120]
[340144066,1728678658787,-500.0,0.00057808,120]
[340144067,1728678658797,-621.34,0.00057808,120]
[340144068,1728678658807,-500.0,0.00057808,120]
[340144069,1728678658817,-638.04,0.00057808,120]
[340144070,1728678658826,-574.52,0.00057808,120]
[340144071,1728678658837,-709.73,0.00057808,120]
[340144072,1728678658846,-544.33877327,0.00057808,120]
[340144073,1728678658856,-200.0,0.00057808,120]
[340144074,1728678658865,-500.0,0.00057808,120]
[340144075,1728678658875,-500.0,0.00057808,120]
[340144076,1728678658885,-6494.28,0.00057808,120]
[340144077,1728678658894,-623.84,0.00057808,2]
[340144078,1728678658904,-601.28,0.00057808,120]
[340144079,1728678658914,-9360.29,0.00057808,18]
[340144080,1728678658925,-592.96,0.00057808,120]
[340144081,1728678658935,-150.0,0.000579,2]
[340144082,1728678658944,-1000.0,0.00057942,120]
[340144083,1728678658955,-155.9,0.00057957,120]
[340144084,1728678658964,-1000.0,0.00058,30]
[340144085,1728678658974,-151.0,0.00058072,120]
[340144086,1728678658984,-211.87964639,0.00058082,120]
[340144087,1728678658994,-933.99,0.00058082,120]
[340144088,1728678659004,-500.0,0.00058082,120]
[340144089,1728678659015,-804.51,0.00058082,120]
[340144090,1728678659029,-500.0,0.00058082,120]
[340144091,1728678659048,-500.0,0.00058082,120]
[340144092,1728678659064,-627.47598087,0.00058082,2]
[340144093,1728678659079,-500.0,0.00058082,7]
[340144094,1728678659096,-536.15,0.00058082,120]
[340144095,1728678659112,-994.59,0.00058082,120]
[340144096,1728678659131,-683.35,0.00058082,30]
[340144097,1728678659147,-546.26,0.00058082,120]
[340144098,1728678659162,-500.0,0.00058082,2]
[340144099,1728678659178,-250.0,0.00058082,120]
[340144100,1728678659191,-500.0,0.00058082,120]
[340144101,1728678659205,-500.0,0.00058082,120]
[340144102,1728678659222,-1202.52,0.00058082,120]
[340144103,1728678659238,-1411.19,0.00058082,120]
[340144104,1728678659255,-1442.14,0.00058082,120]
[340144105,1728678659271,-500.0,0.00058082,120]
[340144106,1728678659283,-632.2,0.00058082,120]
[340144107,1728678659297,-561.03,0.00058082,120]
[340144108,1728678659314,-526.01,0.00058082,120]
[340144109,1728678659329,-500.0,0.00058082,120]
[340144110,1728678659343,-1351.2,0.00058082,120]
[340144111,1728678659356,-3425.5,0.00058082,120]
[340144112,1728678659369,-2791.64,0.00058082,120]
[340144113,1728678659381,-690.98,0.00058082,120]
[340144114,1728678659394,-521.14,0.00058082,120]
[340144115,1728678659408,-613.21,0.00058082,120]
[340144116,1728678659422,-500.0,0.00058082,120]
[340144117,1728678659439,-785.83,0.00058082,120]
[340144118,1728678659454,-500.0,0.00058082,120]
[340144119,1728678659469,-621.34,0.00058082,120]
[340144120,1728678659483,-500.0,0.00058082,120]
[340144121,1728678659498,-638.04,0.00058082,120]
[340144122,1728678659511,-574.52,0.00058082,120]
[340144123,1728678659524,-709.73,0.00058082,120]
[340144124,1728678659537,-200.0,0.00058082,120]
[340144125,1728678659550,-500.0,0.00058082,120]
[340144126,1728678659563,-500.0,0.00058082,120]
[340144127,1728678659577,-6494.28,0.00058082,120]
[340144128,1728678659592,-623.84,0.00058082,2]
[340144129,1728678659607,-601.28,0.00058082,120]
[340144130,1728678659621,-9360.29,0.00058082,18]
[340144131,1728678659634,-592.96,0.00058082,120]
[340144132,1728678659648,-1000.0,0.00058117,120]
[340144133,1728678659662,-150.0,0.0005825,120]
[340144134,1728678659677,-1000.0,0.00058291,120]
[340144135,1728678659692,-933.99,0.00058356,120]
[340144136,1728678659706,-500.0,0.00058356,120]
[340144137,1728678659720,-804.51,0.00058356,120]
[340144138,1728678659736,-500.0,0.00058356,120]
[340144139,1728678659750,-500.0,0.00058356,120]
[340144140,1728678659763,-500.0,0.00058356,7]
[340144141,1728678659777,-536.15,0.00058356,120]
[340144142,1728678659791,-994.59,0.00058356,120]
[340144143,1728678659804,-683.35,0.00058356,30]
[340144144,1728678659818,-546.26,0.00058356,120]
[340144145,1728678659829,-500.0,0.00058356,2]
[340144146,1728678659840,-250.0,0.00058356,120]
[340144147,1728678659921,-500.0,0.00058356,120]
[340144148,1728678659956,-500.0,0.00058356,120]
[340144149,1728678659969,-1202.52,0.00058356,120]
[340144150,1728678659979,-1411.19,0.00058356,120]
[340144151,1728678659990,-1442.14,0.00058356,120]
[340144152,1728678659999,-500.0,0.00058356,120]
[340144153,1728678660009,-632.2,0.00058356,120]
[340144154,1728678660020,-561.03,0.00058356,120]
[340144155,1728678660031,-526.01,0.00058356,120]
[340144156,1728678660041,-500.0,0.00058356,120]
[340144157,1728678660051,-1351.2,0.00058356,120]
[340144158,1728678660061,-3425.5,0.00058356,120]
[340144159,1728678660071,-2791.64,0.00058356,120]
[340144160,1728678660082,-690.98,0.00058356,120]
[340144161,1728678660092,-521.14,0.00058356,120]
[340144162,1728678660102,-613.21,0.00058356,120]
[340144163,1728678660115,-500.0,0.00058356,120]
[340144164,1728678660128,-785.83,0.00058356,120]
[340144165,1728678660141,-414.183377,0.00058356,120]
[340144166,1728678660154,-621.34,0.00058356,120]
[340144167,1728678660165,-500.0,0.00058356,120]
[340144168,1728678660175,-638.04,0.00058356,120]
[340144169,1728678660185,-574.52,0.00058356,120]
[340144170,1728678660195,-709.73,0.00058356,120]
[340144171,1728678660206,-300.0,0.00058356,120]
[340144172,1728678660217,-500.0,0.00058356,120]
[340144173,1728678660227,-500.0,0.00058356,120]
[340144174,1728678660237,-6494.28,0.00058356,120]
[340144175,1728678660247,-623.84,0.00058356,2]
[340144176,1728678660257,-601.28,0.00058356,120]
[340144177,1728678660267,-9360.29,0.00058356,18]
[340144178,1728678660277,-592.96,0.00058356,120]
[340144179,1728678660288,-1000.0,0.00058466,120]
[340144180,1728678660301,-1000.0,0.000585,30]
[340144181,1728678660311,-1742.41686285,0.00058511,2]
[340144182,1728678660321,-500.0,0.00058525,120]
[340144183,1728678660331,-933.99,0.0005863,120]
[340144184,1728678660341,-500.0,0.0005863,120]
[340144185,1728678660351,-804.51,0.0005863,120]
[340144186,1728678660361,-500.0,0.0005863,120]
[340144187,1728678660370,-500.0,0.0005863,120]
[340144188,1728678660380,-500.0,0.0005863,7]
[340144189,1728678660390,-536.15,0.0005863,120]
[340144190,1728678660400,-994.59,0.0005863,120]
[340144191,1728678660409,-683.35,0.0005863,30]
[340144192,1728678660419,-546.26,0.0005863,120]
[340144193,1728678660431,-500.0,0.0005863,2]
[340144194,1728678660443,-250.0,0.0005863,120]
[340144195,1728678660452,-500.0,0.0005863,120]
[340144196,1728678660462,-500.0,0.0005863,120]
[340144197,1728678660471,-1202.52,0.0005863,120]
[340144198,1728678660481,-1411.19,0.0005863,120]
[340144199,1728678660491,-1442.14,0.0005863,120]
[340144200,1728678660500,-237.547264,0.0005863,120]
[340144201,1728678660512,-632.2,0.0005863,120]
[340144202,1728678660521,-561.03,0.0005863,120]
[340144203,1728678660531,-526.01,0.0005863,120]
[340144204,1728678660540,-500.0,0.0005863,120]
[340144205,1728678660549,-1351.2,0.0005863,120]
[340144206,1728678660559,-3425.5,0.0005863,120]
[340144207,1728678660568,-2791.64,0.0005863,120]
[340144208,1728678660578,-690.98,0.0005863,120]
[340144209,1728678660588,-521.14,0.0005863,120]
[340144210,1728678660599,-613.21,0.0005863,120]
[340144211,1728678660608,-500.0,0.0005863,120]
[340144212,1728678660618,-785.83,0.0005863,120]
[340144213,1728678660627,-621.34,0.0005863,120]
[340144214,1728678660637,-500.0,0.0005863,120]
[340144215,1728678660646,-638.04,0.0005863,120]
[340144216,1728678660655,-574.52,0.0005863,120]
[340144217,1728678660665,-709.73,0.0005863,120]
[340144218,1728678660674,-500.0,0.0005863,120]
[340144219,1728678660684,-500.0,0.0005863,120]
[340144220,1728678660693,-6494.28,0.0005863,120]
[340144221,1728678660702,-623.84,0.0005863,2]
[340144222,1728678660712,-601.28,0.0005863,120]
[340144223,1728678660721,-9360.29,0.0005863,18]
[340144224,1728678660730,-1000.0,0.00058641,120]
[340144225,1728678660740,-250000.0,0.0005877,5]
[340144226,1728678660749,-1000.0,0.00058816,120]
[340144227,1728678660759,-150.0,0.000589,2]
[340144228,1728678660768,-500.0,0.00058904,120]
[340144229,1728678660778,-150.22205,0.00058904,30]
[340144230,1728678660787,-500.0,0.00058904,120]
[340144231,1728678660797,-676.48264868,0.00058904,120]
[340144232,1728678660806,-933.99,0.00058904,120]
[340144233,1728678660815,-500.0,0.00058904,120]
[340144234,1728678660824,-804.51,0.00058904,120]
[340144235,1728678660834,-500.0,0.00058904,120]
[340144236,1728678660843,-500.0,0.00058904,120]
[340144237,1728678660852,-500.0,0.00058904,7]
[340144238,1728678660861,-536.15,0.00058904,120]
[340144239,1728678660871,-994.59,0.00058904,120]
[340144240,1728678660880,-683.35,0.00058904,30]
[340144241,1728678660891,-546.26,0.00058904,120]
[340144242,1728678660900,-500.0,0.00058904,2]
[340144243,1728678660910,-250.0,0.00058904,120]
[340144244,1728678660919,-500.0,0.00058904,120]
[340144245,1728678660930,-500.0,0.00058904,120]
[340144246,1728678660941,-1202.52,0.00058904,120]
[340144247,1728678660951,-1411.19,0.00058904,120]
[340144248,1728678660963,-1442.14,0.00058904,120]
[340144249,1728678660974,-632.2,0.00058904,120]
[340144250,1728678660986,-561.03,0.00058904,120]
[340144251,1728678660998,-526.01,0.00058904,120]
[340144252,1728678661011,-500.0,0.00058904,120]
[340144253,1728678661021,-1351.2,0.00058904,120]
[340144254,1728678661030,-3425.5,0.00058904,120]
[340144255,1728678661040,-2791.64,0.00058904,120]
[340144256,1728678661050,-690.98,0.00058904,120]
[340144257,1728678661060,-521.14,0.00058904,120]
[340144258,1728678661071,-613.21,0.00058904,120]
[340144259,1728678661083,-500.0,0.00058904,120]
[340144260,1728678661093,-785.83,0.00058904,120]
[340144261,1728678661104,-621.34,0.00058904,120]
[340144262,1728678661118,-500.0,0.00058904,120]
[340144263,1728678661130,-638.04,0.00058904,120]
[340144264,1728678661141,-574.52,0.00058904,120]
[340144265,1728678661154,-709.73,0.00058904,120]
[340144266,1728678661166,-500.0,0.00058904,120]
[340144267,1728678661176,-5000.0,0.00058904,120]
[340144268,1728678661186,-500.0,0.00058904,120]
[340144269,1728678661195,-6494.28,0.00058904,120]
[340144270,1728678661205,-623.84,0.00058904,2]
[340144271,1728678661214,-601.28,0.00058904,120]
[340144272,1728678661223,-9360.29,0.00058904,18]
[340144273,1728678661232,-1000.0,0.0005899,120]
[340144274,1728678661241,-1065.0,0.00059,120]
[340144275,1728678661250,-1000.0,0.00059,30]
[340144276,1728678661258,-10000.0,0.00059,120]
[340144277,1728678661267,-1625.39,0.00059,30]
[340144278,1728678661277,-1000.0,0.00059165,120]